[Event "Caplin Hastings Masters 2023-24"]
[Site "Hastings"]
[Date "2024.01.01"]
[Round "5.30"]
[White "Thompson, Ian D"]
[Black "Han, Qixiang"]
[Result "0-1"]
[ECO "A37"]
[WhiteElo "2011"]
[BlackElo "1711"]
[Annotator "NA RC"]
[PlyCount "70"]
[EventDate "2023.12.18"]
[EventType "swiss"]
[EventCountry "ENG"]
[SourceTitle "playchess.com"]
[Source "ChessBase"]
[SourceQuality "1"]
[TimeControl "40/6000+30:3000+30"]

1. Nf3 {[%emt 0:00:03]} c5 {[%emt 0:00:11]} 2. c4 {[%emt 0:00:21]} g6 {[%emt 0:00:06]} 3. Nc3 {[%emt 0:00:15]} Bg7 {[%emt 0:00:05]} 4. g3 {[%emt 0:00:20]} Nc6 {[%emt 0:00:04]} 5. Bg2 {[%emt 0:00:06]} d6 {[%emt 0:00:02]} 6. a3 {[%emt 0:02:10]} a5 {[%emt 0:01:16]} 7. d3 {[%emt 0:01:36]} e5 {[%emt 0:00:23]} 8. O-O {[%emt 0:01:28]} Nge7 {[%emt 0:01:48]} 9. Rb1 {[%emt 0:02:25]} O-O {[%emt 0:00:35]} 10. Ne1 {[%emt 0:02:20]} Be6 {[%emt 0:03:23]} 11. Nc2 {[%emt 0:00:52]} Rb8 {[%emt 0:04:49]} 12. Ne3 {[%emt 0:01:33]} f5 {[%emt 0:03:03]} 13. Bd2 {[%emt 0:04:01]} Nd4 {[%emt 0:02:37]} 14. b4 {[%emt 0:13:04]} b6 {[%emt 0:02:55]} 15. Ned5 {[%emt 0:04:41]} Ndc6 {[%emt 0:10:26]} 16. bxa5 {[%emt 0:14:58]} bxa5 {[%emt 0:01:39]} 17. Rxb8 {[%emt 0:03:28]} Qxb8 {[%emt 0:01:54]} 18. Qa4 {[%emt 0:02:58]} Bxd5 {[%emt 0:13:33]} 19. Nxd5 {[%emt 0:02:16]} Qc8 {[%emt 0:03:49]} 20. Nxe7+ {[%emt 0:12:15]} Nxe7 {[%emt 0:00:24]} 21. Qxa5 {[%emt 0:00:14]} f4 {[%emt 0:00:33]} 22. Qb6 {[%emt 0:10:32]} Nf5 {[%emt 0:05:17]} 23. a4 {[%emt 0:05:43]} Nd4 {[%emt 0:01:01]} 24. Re1 {[%emt 0:01:54]} fxg3 {[%emt 0:02:08]} 25. hxg3 {[%emt 0:00:14]} Qg4 {[%emt 0:00:23]} 26. Bd5+ {[%emt 0:05:10]} Kh8 {[%emt 0:00:48]} 27. Kg2 {[%emt 0:02:40]} Nxe2 {[%emt 0:02:12]} 28. Qxd6 {[%emt 0:02:36]} Nd4 {[%emt 0:04:53]} 29. Qxc5 {[%emt 0:05:00]} Rf5 {[%emt 0:08:01]} 30. Be3 {[%emt 0:03:55]} Bf8 {[%emt 0:07:04]} 31. Qa7 {[%emt 0:00:58]} Nc2 {[%emt 0:02:31]} 32. Rb1 {[%emt 0:01:08]} Qe2 {[%emt 0:03:48]} 33. Rb7 {[%emt 0:01:15]} Rh5 {[%emt 0:01:12]} 34. Rf7 {[%emt 0:00:54]} Ne1+ {[%emt 0:00:03]} 35. Kg1 {[%emt 0:00:12]} Nf3+ {[%emt 0:00:08]} 0-1

[Event "Caplin Hastings Masters 2023-24"]
[Site "Hastings"]
[Date "2024.01.01"]
[Round "5.31"]
[White "Evenshaug, Amadeus Hestvik"]
[Black "Alcindor, Samuel"]
[Result "1-0"]
[ECO "B15"]
[WhiteElo "2041"]
[BlackElo "1714"]
[Annotator "RC"]
[PlyCount "81"]
[EventDate "2023.12.18"]
[EventType "swiss"]
[EventCountry "ENG"]
[SourceTitle "playchess.com"]
[Source "ChessBase"]
[SourceQuality "1"]
[TimeControl "40/6000+30:3000+30"]

1. e4 {[%emt 0:00:04]} c6 {[%emt 0:00:04]} 2. d4 {[%emt 0:00:17]} d5 {[%emt 0:00:07]} 3. Nc3 {[%emt 0:00:15]} dxe4 {[%emt 0:00:09]} 4. Nxe4 {[%emt 0:00:08]} Nf6 {[%emt 0:00:07]} 5. Nxf6+ {[%emt 0:00:11]} exf6 {[%emt 0:00:07]} 6. Be3 {[%emt 0:00:59]} Be6 {[%emt 0:05:58]} 7. Bd3 {[%emt 0:01:24]} Bd6 {[%emt 0:03:11]} 8. Ne2 {[%emt 0:01:29]} O-O {[%emt 0:03:42]} 9. c3 {[%emt 0:01:43]} Nd7 {[%emt 0:06:49]} 10. Qc2 {[%emt 0:02:44]} g6 {[%emt 0:00:57]} 11. h4 {[%emt 0:02:41]} c5 {[%emt 0:04:42]} 12. h5 {[%emt 0:04:39]} f5 {[%emt 0:09:00]} 13. Qd2 {[%emt 0:25:05]} c4 {[%emt 0:10:16]} 14. Bc2 {[%emt 0:00:24]} Nf6 {[%emt 0:00:33]} 15. Bg5 {[%emt 0:07:38]} Be7 {[%emt 0:00:15]} 16. O-O-O {[%emt 0:07:16]} Qa5 {[%emt 0:05:27]} 17. Qf4 {[%emt 0:23:00]} Nd5 {[%emt 0:08:18]} 18. Qh4 {[%emt 0:03:11]} Bxg5+ {[%emt 0:01:15]} 19. Qxg5 {[%emt 0:00:14]} f6 {[%emt 0:01:29]} 20. Qg3 {[%emt 0:01:07]} g5 {[%emt 0:03:58]} 21. Qd6 {[%emt 0:06:59]} Qb6 {[%emt 0:01:35]} 22. Qxb6 {[%emt 0:05:49]} Nxb6 {[%emt 0:02:17]} 23. Ng3 {[%emt 0:01:05]} f4 {[%emt 0:04:33]} 24. Nf5 {[%emt 0:00:41]} Rfe8 {[%emt 0:07:28]} 25. Nd6 {[%emt 0:01:23]} Re7 {[%emt 0:00:14]} 26. Rhe1 {[%emt 0:01:20]} Kf8 {[%emt 0:00:21]} 27. Bf5 {[%emt 0:07:01]} Bg8 {[%emt 0:12:42]} 28. Rxe7 {[%emt 0:01:44]} Kxe7 {[%emt 0:00:02]} 29. Ne4 {[%emt 0:00:25]} h6 {[%emt 0:01:57]} 30. Re1 {[%emt 0:00:29]} Be6 {[%emt 0:01:20]} 31. Nc5 {[%emt 0:00:12]} Kf7 {[%emt 0:00:51]} 32. Bg6+ {[%emt 0:00:52]} Ke7 {[%emt 0:00:28]} 33. Rxe6+ {[%emt 0:00:08]} Kf8 {[%emt 0:00:13]} 34. Rxf6+ {[%emt 0:00:07]} Ke7 {[%emt 0:00:27]} 35. Rf7+ {[%emt 0:00:14]} Kd6 {[%emt 0:00:21]} 36. a4 {[%emt 0:00:56]} a5 {[%emt 0:01:28]} 37. Rxb7 {[%emt 0:00:11]} Nd5 {[%emt 0:00:27]} 38. Rd7+ {[%emt 0:00:08]} Kc6 {[%emt 0:00:07]} 39. Be4 {[%emt 0:00:06]} Re8 {[%emt 0:00:26]} 40. Bxd5+ {[%emt 0:00:06]} Kb6 {[%emt 0:00:09]} 41. Rb7# {[%emt 0:50:05]} 1-0

[Event "Caplin Hastings Masters 2023-24"]
[Site "Hastings"]
[Date "2024.01.01"]
[Round "5.32"]
[White "Ismail, Mohammed Aayan"]
[Black "Norinkeviciute, Rasa"]
[Result "1-0"]
[ECO "E14"]
[WhiteElo "2115"]
[BlackElo "1905"]
[Annotator "RC"]
[PlyCount "39"]
[EventDate "2023.12.18"]
[EventType "swiss"]
[EventCountry "ENG"]
[SourceTitle "playchess.com"]
[Source "ChessBase"]
[SourceQuality "1"]
[TimeControl "40/6000+30:3000+30"]

1. d4 {[%emt 0:00:14]} Nf6 {[%emt 0:00:29]} 2. Nf3 {[%emt 0:00:10]} e6 {[%emt 0:01:19]} 3. e3 {[%emt 0:01:07]} b6 {[%emt 0:00:45]} 4. Bd3 {[%emt 0:01:37]} Bb7 {[%emt 0:00:40]} 5. O-O {[%emt 0:00:09]} c5 {[%emt 0:03:07]} 6. c4 {[%emt 0:03:27]} cxd4 {[%emt 0:04:43]} 7. exd4 {[%emt 0:02:00]} Be7 {[%emt 0:06:32]} 8. Nc3 {[%emt 0:02:55]} O-O {[%emt 0:02:44]} 9. d5 {[%emt 0:10:25]} d6 {[%emt 0:06:32]} 10. dxe6 {[%emt 0:08:15]} fxe6 {[%emt 0:00:30]} 11. Ng5 {[%emt 0:08:04]} Qd7 {[%emt 0:10:31]} 12. Re1 {[%emt 0:05:40]} Qc6 {[%emt 0:14:42]} 13. Nce4 {[%emt 0:07:37]} d5 {[%emt 0:10:06]} 14. Nxf6+ {[%emt 0:04:37]} Rxf6 {[%emt 0:02:53]} 15. Qh5 {[%emt 0:09:43]} h6 {[%emt 0:08:38]} 16. Rxe6 {[%emt 0:19:08]} Qd7 {[%emt 0:07:28]} 17. Bf5 {[%emt 0:02:26]} Rxf5 {[%emt 0:08:50]} 18. Rxh6 {[%emt 0:00:23]} gxh6 {[%emt 0:01:10]} 19. Qg6+ {[%emt 0:00:03]} Kf8 {[%emt 0:01:27]} 20. Nh7# {[%emt 0:00:41]} 1-0

[Event "Caplin Hastings Masters 2023-24"]
[Site "Hastings"]
[Date "2024.01.01"]
[Round "5.33"]
[White "Liu, Tianyi"]
[Black "Gibbs, Dominic V"]
[Result "1-0"]
[ECO "C18"]
[WhiteElo "2022"]
[BlackElo "1795"]
[Annotator "RC"]
[PlyCount "97"]
[EventDate "2023.12.18"]
[EventType "swiss"]
[EventCountry "ENG"]
[SourceTitle "playchess.com"]
[Source "ChessBase"]
[SourceQuality "1"]
[TimeControl "40/6000+30:3000+30"]

1. e4 {[%emt 0:00:04]} e6 {[%emt 0:00:06]} 2. d4 {[%emt 0:00:05]} d5 {[%emt 0:00:05]} 3. Nc3 {[%emt 0:00:03]} Bb4 {[%emt 0:00:06]} 4. e5 {[%emt 0:00:05]} c5 {[%emt 0:00:05]} 5. a3 {[%emt 0:00:04]} Bxc3+ {[%emt 0:00:04]} 6. bxc3 {[%emt 0:00:03]} Qa5 {[%emt 0:00:07]} 7. Bd2 {[%emt 0:00:09]} Qa4 {[%emt 0:00:09]} 8. h4 {[%emt 0:10:36]} Ne7 {[%emt 0:05:38]} 9. Qg4 {[%emt 0:01:53]} Kf8 {[%emt 0:07:28]} 10. Rh3 {[%emt 0:06:00]} c4 {[%emt 0:05:00]} 11. h5 {[%emt 0:03:07]} h6 {[%emt 0:02:41]} 12. Kd1 {[%emt 0:04:22]} Nbc6 {[%emt 0:03:47]} 13. Qf4 {[%emt 0:06:06]} Bd7 {[%emt 0:04:53]} 14. g4 {[%emt 0:02:38]} Ke8 {[%emt 0:09:49]} 15. Rf3 {[%emt 0:03:11]} Nd8 {[%emt 0:02:40]} 16. Ne2 {[%emt 0:09:24]} Bc6 {[%emt 0:03:44]} 17. g5 {[%emt 0:04:48]} hxg5 {[%emt 0:03:31]} 18. Qg4 {[%emt 0:01:46]} Qb5 {[%emt 0:07:47]} 19. Kc1 {[%emt 0:06:01]} Qb6 {[%emt 0:01:30]} 20. Bxg5 {[%emt 0:00:50]} Qc7 {[%emt 0:00:35]} 21. Ng3 {[%emt 0:02:33]} Ba4 {[%emt 0:04:22]} 22. Bxe7 {[%emt 0:07:04]} Qxe7 {[%emt 0:00:23]} 23. Qxg7 {[%emt 0:00:12]} Qf8 {[%emt 0:00:40]} 24. Qg4 {[%emt 0:02:47]} Rc8 {[%emt 0:04:42]} 25. Rf6 {[%emt 0:01:39]} Rc6 {[%emt 0:04:17]} 26. Qf4 {[%emt 0:06:37]} Ra6 {[%emt 0:04:08]} 27. Kd1 {[%emt 0:01:23]} Bb5 {[%emt 0:01:44]} 28. Qc1 {[%emt 0:00:21]} Ba4 {[%emt 0:10:09]} 29. Be2 {[%emt 0:01:34]} Qg8 {[%emt 0:02:10]} 30. Ke1 {[%emt 0:08:12]} Qh7 {[%emt 0:00:49]} 31. Bd1 {[%emt 0:00:24]} Qg8 {[%emt 0:05:04]} 32. Kf1 {[%emt 0:01:05]} Nc6 {[%emt 0:05:02]} 33. Rb1 {[%emt 0:01:04]} b5 {[%emt 0:00:43]} 34. Qf4 {[%emt 0:04:08]} Nd8 {[%emt 0:00:47]} 35. Rh6 {[%emt 0:01:37]} Qf8 {[%emt 0:04:13]} 36. Rxh8 {[%emt 0:00:43]} Qxh8 {[%emt 0:00:01]} 37. Qg5 {[%emt 0:01:55]} Nc6 {[%emt 0:00:32]} 38. h6 {[%emt 0:00:33]} Kf8 {[%emt 0:00:14]} 39. Nh5 {[%emt 0:01:56]} Rb6 {[%emt 0:00:49]} 40. Nf6 {[%emt 0:00:12]} Rb7 {[%emt 0:06:02]} 41. h7 {[%emt 0:50:18]} Qg7 {[%emt 0:52:43]} 42. Qh4 {[%emt 0:00:22]} Qh8 {[%emt 0:00:25]} 43. Rc1 {[%emt 0:04:54]} Rc7 {[%emt 0:00:00]} 44. Bf3 {[%emt 0:00:00]} Rc8 {[%emt 0:00:00]} 45. Ke2 {[%emt 0:00:00]} Ke7 {[%emt 0:00:00]} 46. Nxd5+ {[%emt 0:00:00]} Kd7 {[%emt 0:00:00]} 47. Nf6+ {[%emt 0:00:00]} Kc7 {[%emt 0:00:00]} 48. Bxc6 {[%emt 0:00:00]} Kxc6 {[%emt 0:00:00]} 49. Qe4+ {[%emt 0:00:00]} 1-0

[Event "Caplin Hastings Masters 2023-24"]
[Site "Hastings"]
[Date "2024.01.01"]
[Round "5.34"]
[White "Park, Inchan"]
[Black "Kovalskyi, Roman"]
[Result "1-0"]
[ECO "A14"]
[WhiteElo "1768"]
[BlackElo "2009"]
[Annotator "RC"]
[PlyCount "91"]
[EventDate "2023.12.18"]
[EventType "swiss"]
[EventCountry "ENG"]
[SourceTitle "playchess.com"]
[Source "ChessBase"]
[SourceQuality "1"]
[TimeControl "40/6000+30:3000+30"]

1. d4 {[%emt 0:00:02]} d5 {[%emt 0:03:53]} 2. Nf3 {[%emt 0:00:06]} Nf6 {[%emt 0:00:10]} 3. g3 {[%emt 0:00:04]} c5 {[%emt 0:00:10]} 4. Bg2 {[%emt 0:00:05]} Nc6 {[%emt 0:00:15]} 5. O-O {[%emt 0:00:06]} e6 {[%emt 0:00:50]} 6. b3 {[%emt 0:01:01]} Be7 {[%emt 0:02:19]} 7. Bb2 {[%emt 0:00:16]} O-O {[%emt 0:00:17]} 8. c4 {[%emt 0:00:13]} b6 {[%emt 0:00:29]} 9. Nbd2 {[%emt 0:00:45]} Bb7 {[%emt 0:01:10]} 10. e3 {[%emt 0:05:07]} Rc8 {[%emt 0:02:29]} 11. Qe2 {[%emt 0:01:26]} Qc7 {[%emt 0:01:47]} 12. Rac1 {[%emt 0:01:52]} Ba6 {[%emt 0:07:23]} 13. Ne5 {[%emt 0:03:11]} Na5 {[%emt 0:02:01]} 14. Rfd1 {[%emt 0:01:22]} Qb8 {[%emt 0:03:33]} 15. Qe1 {[%emt 0:01:24]} Rfd8 {[%emt 0:10:24]} 16. cxd5 {[%emt 0:11:37]} exd5 {[%emt 0:12:53]} 17. Ndf3 {[%emt 0:00:13]} c4 {[%emt 0:04:03]} 18. Bc3 {[%emt 0:09:22]} Ba3 {[%emt 0:07:05]} 19. Rb1 {[%emt 0:00:20]} Nb7 {[%emt 0:09:44]} 20. bxc4 {[%emt 0:34:35]} dxc4 {[%emt 0:01:12]} 21. Ng5 {[%emt 0:01:22]} h6 {[%emt 0:19:30]} 22. Nh3 {[%emt 0:10:08]} Nd5 {[%emt 0:03:09]} 23. e4 {[%emt 0:00:45]} Nxc3 {[%emt 0:01:27]} 24. Qxc3 {[%emt 0:00:31]} Qd6 {[%emt 0:00:06]} 25. Nf3 {[%emt 0:03:26]} b5 {[%emt 0:01:25]} 26. e5 {[%emt 0:07:46]} Qf8 {[%emt 0:00:06]} 27. Nh4 {[%emt 0:00:30]} b4 {[%emt 0:00:31]} 28. Qc2 {[%emt 0:00:04]} c3 {[%emt 0:08:26]} 29. Be4 {[%emt 0:07:09]} Qe8 {[%emt 0:05:56]} 30. Nf5 {[%emt 0:02:30]} Rc7 {[%emt 0:01:22]} 31. Nf4 {[%emt 0:01:33]} Bb5 {[%emt 0:00:45]} 32. Nh5 {[%emt 0:01:13]} Ba4 {[%emt 0:01:08]} 33. Rb3 {[%emt 0:02:39]} Na5 {[%emt 0:00:28]} 34. Nfxg7 {[%emt 0:00:58]} Qb5 {[%emt 0:00:31]} 35. Bh7+ {[%emt 0:02:34]} Kh8 {[%emt 0:00:30]} 36. Bd3 {[%emt 0:00:57]} Qb6 {[%emt 0:00:18]} 37. Nf5 {[%emt 0:00:24]} Qe6 {[%emt 0:00:40]} 38. Nf6 {[%emt 0:00:54]} Nxb3 {[%emt 0:00:21]} 39. Qe2 {[%emt 0:00:46]} Rg8 {[%emt 0:00:40]} 40. Qh5 {[%emt 0:00:17]} Rg6 {[%emt 0:00:24]} 41. Nxh6 {[%emt 0:04:09]} Kg7 {[%emt 0:22:40]} 42. Nf5+ {[%emt 0:00:40]} Qxf5 {[%emt 0:00:05]} 43. Bxf5 {[%emt 0:00:09]} Nd2 {[%emt 0:01:29]} 44. Qh7+ {[%emt 0:00:15]} Kf8 {[%emt 0:00:04]} 45. Qh8+ {[%emt 0:00:06]} Ke7 {[%emt 0:00:13]} 46. Nd5# {[%emt 0:00:07]} 1-0

[Event "Caplin Hastings Masters 2023-24"]
[Site "Hastings"]
[Date "2024.01.01"]
[Round "5.35"]
[White "Steiners, Emils"]
[Black "Patel, Zain"]
[Result "1-0"]
[ECO "E49"]
[WhiteElo "1993"]
[BlackElo "1841"]
[Annotator "RC"]
[PlyCount "93"]
[EventDate "2023.12.18"]
[EventType "swiss"]
[EventCountry "ENG"]
[SourceTitle "playchess.com"]
[Source "ChessBase"]
[SourceQuality "1"]
[TimeControl "40/6000+30:3000+30"]

1. d4 {[%emt 0:00:03]} Nf6 {[%emt 0:00:13]} 2. c4 {[%emt 0:00:04]} e6 {[%emt 0:00:16]} 3. Nc3 {[%emt 0:00:05]} Bb4 {[%emt 0:00:10]} 4. e3 {[%emt 0:00:04]} O-O {[%emt 0:00:37]} 5. Bd3 {[%emt 0:00:03]} d5 {[%emt 0:00:24]} 6. a3 {[%emt 0:00:04]} Bxc3+ {[%emt 0:00:37]} 7. bxc3 {[%emt 0:00:05]} dxc4 {[%emt 0:00:29]} 8. Bxc4 {[%emt 0:00:18]} c5 {[%emt 0:00:22]} 9. Ne2 {[%emt 0:01:19]} Qc7 {[%emt 0:00:22]} 10. Bd3 {[%emt 0:01:35]} Nc6 {[%emt 0:00:47]} 11. O-O {[%emt 0:01:50]} e5 {[%emt 0:01:10]} 12. Bb2 {[%emt 0:15:18]} Be6 {[%emt 0:08:45]} 13. Rc1 {[%emt 0:15:32]} Na5 {[%emt 0:09:04]} 14. e4 {[%emt 0:13:28]} Bb3 {[%emt 0:11:10]} 15. Qe1 {[%emt 0:04:59]} Bc4 {[%emt 0:09:38]} 16. Qd1 {[%emt 0:07:49]} Qb6 {[%emt 0:07:40]} 17. Rb1 {[%emt 0:04:38]} Qa6 {[%emt 0:09:36]} 18. Bxc4 {[%emt 0:06:07]} Nxc4 {[%emt 0:01:18]} 19. Ng3 {[%emt 0:08:23]} Rfd8 {[%emt 0:07:00]} 20. d5 {[%emt 0:05:52]} Nxb2 {[%emt 0:07:08]} 21. Rxb2 {[%emt 0:00:24]} Qxa3 {[%emt 0:00:46]} 22. Rxb7 {[%emt 0:03:59]} Qxc3 {[%emt 0:01:54]} 23. Qa1 {[%emt 0:06:34]} Qxa1 {[%emt 0:07:23]} 24. Rxa1 {[%emt 0:00:02]} c4 {[%emt 0:10:22]} 25. f3 {[%emt 0:02:22]} c3 {[%emt 0:05:56]} 26. Nf5 {[%emt 0:04:39]} g6 {[%emt 0:03:33]} 27. Ne7+ {[%emt 0:02:01]} Kf8 {[%emt 0:00:56]} 28. Nc6 {[%emt 0:00:21]} Rd7 {[%emt 0:00:14]} 29. Rb3 {[%emt 0:00:51]} Nh5 {[%emt 0:02:20]} 30. Nxe5 {[%emt 0:02:27]} Rc7 {[%emt 0:00:05]} 31. Nc6 {[%emt 0:00:31]} Nf4 {[%emt 0:00:10]} 32. g3 {[%emt 0:01:31]} Ne6 {[%emt 0:01:33]} 33. Rxc3 {[%emt 0:01:33]} Nd4 {[%emt 0:00:04]} 34. Kf2 {[%emt 0:00:45]} Nxc6 {[%emt 0:00:48]} 35. dxc6 {[%emt 0:00:44]} Ke7 {[%emt 0:00:46]} 36. Ra6 {[%emt 0:00:47]} Rb8 {[%emt 0:01:17]} 37. Ke3 {[%emt 0:01:07]} Kd6 {[%emt 0:02:13]} 38. Rd3+ {[%emt 0:00:18]} Ke7 {[%emt 0:00:50]} 39. Rc3 {[%emt 0:00:44]} Kd6 {[%emt 0:00:29]} 40. Rd3+ {[%emt 0:00:22]} Ke6 {[%emt 0:00:30]} 41. Rd7 {[%emt 0:08:07]} Rb3+ {[%emt 0:08:17]} 42. Kf4 {[%emt 0:02:12]} Rxc6 {[%emt 0:01:18]} 43. Raxa7 {[%emt 0:04:16]} Rc2 {[%emt 0:15:55]} 44. Re7+ {[%emt 0:00:26]} Kd6 {[%emt 0:01:37]} 45. Rad7+ {[%emt 0:00:11]} Kc6 {[%emt 0:01:24]} 46. Rc7+ {[%emt 0:00:08]} Kd6 {[%emt 0:00:03]} 47. e5+ {[%emt 0:00:04]} 1-0

[Event "Caplin Hastings Masters 2023-24"]
[Site "Hastings"]
[Date "2024.01.01"]
[Round "5.36"]
[White "Sugden, John N"]
[Black "Flynn, David"]
[Result "1/2-1/2"]
[ECO "B34"]
[WhiteElo "1968"]
[BlackElo "1791"]
[Annotator "NA RC"]
[PlyCount "55"]
[EventDate "2023.12.18"]
[EventType "swiss"]
[EventCountry "ENG"]
[SourceTitle "playchess.com"]
[Source "ChessBase"]
[SourceQuality "1"]
[TimeControl "40/6000+30:3000+30"]

1. e4 {[%emt 0:00:07]} c5 {[%emt 0:09:21]} 2. Nf3 {[%emt 0:00:28]} Nc6 {[%emt 0:00:17]} 3. Nc3 {[%emt 0:01:15]} g6 {[%emt 0:00:09]} 4. d4 {[%emt 0:02:07]} cxd4 {[%emt 0:00:06]} 5. Nxd4 {[%emt 0:00:17]} Bg7 {[%emt 0:00:05]} 6. Be3 {[%emt 0:01:12]} Nf6 {[%emt 0:00:09]} 7. Be2 {[%emt 0:02:41]} O-O {[%emt 0:00:32]} 8. O-O {[%emt 0:05:28]} d5 {[%emt 0:09:42]} 9. exd5 {[%emt 0:04:33]} Nxd5 {[%emt 0:01:26]} 10. Nxd5 {[%emt 0:03:08]} Nxd4 {[%emt 0:06:10]} 11. Bxd4 {[%emt 0:02:25]} Qxd5 {[%emt 0:00:13]} 12. Bxg7 {[%emt 0:00:38]} Qxd1 {[%emt 0:00:15]} 13. Rfxd1 {[%emt 0:01:09]} Kxg7 {[%emt 0:00:05]} 14. Rd2 {[%emt 0:11:56]} Bf5 {[%emt 0:00:12]} 15. Rad1 {[%emt 0:00:47]} Rfc8 {[%emt 0:02:49]} 16. c4 {[%emt 0:03:12]} Kf8 {[%emt 0:07:23]} 17. b3 {[%emt 0:04:22]} Ke8 {[%emt 0:12:37]} 18. Bf3 {[%emt 0:01:47]} Rab8 {[%emt 0:11:08]} 19. h3 {[%emt 0:05:54]} Rd8 {[%emt 0:15:53]} 20. g4 {[%emt 0:24:05]} Rxd2 {[%emt 0:00:37]} 21. Rxd2 {[%emt 0:00:12]} Bb1 {[%emt 0:02:26]} 22. Kf1 {[%emt 0:08:36]} Rd8 {[%emt 0:05:09]} 23. Ke2 {[%emt 0:02:42]} Rxd2+ {[%emt 0:00:49]} 24. Kxd2 {[%emt 0:00:13]} b6 {[%emt 0:00:21]} 25. a3 {[%emt 0:01:07]} Kd7 {[%emt 0:01:22]} 26. Kc3 {[%emt 0:05:29]} Kd6 {[%emt 0:01:17]} 27. b4 {[%emt 0:02:56]} g5 {[%emt 0:13:13]} 28. Kd4 {[%emt 0:01:43]} 1/2-1/2

[Event "Caplin Hastings Masters 2023-24"]
[Site "Hastings"]
[Date "2024.01.01"]
[Round "5.37"]
[White "Moracchini, Margaux"]
[Black "Dewangan, Aayush"]
[Result "0-1"]
[ECO "B43"]
[WhiteElo "1922"]
[BlackElo "1655"]
[Annotator "ChessBase"]
[PlyCount "117"]
[EventDate "2023.12.18"]
[EventType "swiss"]
[EventCountry "ENG"]
[SourceTitle "playchess.com"]
[Source "ChessBase"]
[SourceQuality "1"]
[TimeControl "40/6000+30:3000+30"]

1. e4 {[%emt 0:06:56]} c5 {[%emt 0:00:08]} 2. Nc3 {[%emt 0:00:15]} e6 {[%emt 0:00:05]} 3. Nf3 {[%emt 0:01:32]} a6 {[%emt 0:00:16]} 4. d4 {[%emt 0:02:59]} cxd4 {[%emt 0:00:07]} 5. Nxd4 {[%emt 0:00:07]} d6 {[%emt 0:00:18]} 6. g3 {[%emt 0:01:53]} b5 {[%emt 0:05:30]} 7. Bg2 {[%emt 0:06:43]} Bb7 {[%emt 0:00:22]} 8. O-O {[%emt 0:02:18]} Nf6 {[%emt 0:04:47]} 9. a3 {[%emt 0:04:45]} Qc7 {[%emt 0:04:48]} 10. Be3 {[%emt 0:05:15]} Be7 {[%emt 0:03:34]} 11. f4 {[%emt 0:07:09]} O-O {[%emt 0:10:14]} 12. g4 {[%emt 0:05:46]} Nc6 {[%emt 0:07:07]} 13. Nxc6 {[%emt 0:04:36]} Bxc6 {[%emt 0:01:34]} 14. g5 {[%emt 0:05:12]} Nd7 {[%emt 0:01:20]} 15. Qg4 {[%emt 0:01:11]} Qb7 {[%emt 0:13:45]} 16. f5 {[%emt 0:13:30]} Ne5 {[%emt 0:02:29]} 17. Qh3 {[%emt 0:01:39]} exf5 {[%emt 0:01:22]} 18. Rxf5 {[%emt 0:03:30]} b4 {[%emt 0:15:56]} 19. Nd5 {[%emt 0:02:11]} Bxd5 {[%emt 0:00:26]} 20. exd5 {[%emt 0:00:05]} bxa3 {[%emt 0:00:22]} 21. b3 {[%emt 0:01:44]} Qb4 {[%emt 0:03:13]} 22. Rf4 {[%emt 0:12:42]} Qc3 {[%emt 0:01:58]} 23. Bd4 {[%emt 0:00:53]} Qxh3 {[%emt 0:03:37]} 24. Bxh3 {[%emt 0:00:23]} Bxg5 {[%emt 0:01:02]} 25. Bxe5 {[%emt 0:00:27]} dxe5 {[%emt 0:00:19]} 26. Re4 {[%emt 0:00:18]} Rfd8 {[%emt 0:04:10]} 27. Rxa3 {[%emt 0:12:04]} Rxd5 {[%emt 0:01:36]} 28. Re1 {[%emt 0:00:05]} Bd2 {[%emt 0:02:29]} 29. Re2 {[%emt 0:01:08]} Bc3 {[%emt 0:01:25]} 30. Bg2 {[%emt 0:01:59]} Rd1+ {[%emt 0:00:02]} 31. Kf2 {[%emt 0:00:11]} Ra7 {[%emt 0:00:26]} 32. Be4 {[%emt 0:00:33]} Ra1 {[%emt 0:01:55]} 33. Rxa1 {[%emt 0:00:17]} Bxa1 {[%emt 0:00:03]} 34. Rd2 {[%emt 0:02:09]} Bd4+ {[%emt 0:00:56]} 35. Ke2 {[%emt 0:00:05]} g6 {[%emt 0:00:41]} 36. Bd5 {[%emt 0:00:37]} a5 {[%emt 0:01:27]} 37. c4 {[%emt 0:01:20]} Kg7 {[%emt 0:01:48]} 38. Kd3 {[%emt 0:01:00]} f5 {[%emt 0:01:56]} 39. Rc2 {[%emt 0:00:05]} Bc5 {[%emt 0:00:18]} 40. Bc6 {[%emt 0:00:31]} Rc7 {[%emt 0:01:59]} 41. Bb5 {[%emt 0:50:07]} e4+ {[%emt 0:50:32]} 42. Ke2 {[%emt 0:00:17]} Kf6 {[%emt 0:02:46]} 43. Rd2 {[%emt 0:00:06]} Ke5 {[%emt 0:03:23]} 44. Rd8 {[%emt 0:02:13]} Kf4 {[%emt 0:01:23]} 45. Kf1 {[%emt 0:01:15]} Kf3 {[%emt 0:02:44]} 46. Ra8 {[%emt 0:00:45]} e3 {[%emt 0:01:31]} 47. Re8 {[%emt 0:00:12]} Be7 {[%emt 0:03:41]} 48. c5 {[%emt 0:00:39]} Bxc5 {[%emt 0:00:24]} 49. Be2+ {[%emt 0:00:36]} Kf4 {[%emt 0:00:13]} 50. Ra8 {[%emt 0:01:09]} Bb4 {[%emt 0:01:25]} 51. Rd8 {[%emt 0:00:22]} Rc1+ {[%emt 0:00:30]} 52. Bd1 {[%emt 0:00:23]} Bd2 {[%emt 0:00:00]} 53. Ke2 {[%emt 0:00:00]} Rxd1 {[%emt 0:00:00]} 54. Kxd1 {[%emt 0:00:00]} Kf3 {[%emt 0:00:00]} 55. Re8 {[%emt 0:00:00]} Kf2 {[%emt 0:00:00]} 56. Kc2 {[%emt 0:00:00]} f4 {[%emt 0:00:00]} 57. Kd3 {[%emt 0:00:00]} f3 {[%emt 0:00:00]} 58. Re7 {[%emt 0:00:00]} Ke1 {[%emt 0:00:00]} 59. Kd4 {[%emt 0:01:44]} 0-1